{"text_format":"1","workbook":"xlsx","n_sheets":3,"sheets":["ΣΠ.8","ΕΠ.8","ΚΩΔΙΚΟΙ ΛΟΓΙΣΤΙΚΗΣ"],"not_rendered":{"charts":0,"images":2,"macros":0,"external_links":0,"defined_names":3,"comments":0,"pivot_tables":0},"unopened":[],"bounds":{"document_bytes":16777216,"sheet_cells":100000,"rows_first":2000,"rows_last":500,"rows_between":2000,"halvings":0,"cell_chars":16384,"cell_head_chars":4096},"cells_cut":0,"cells_raw":0,"read":"whole","date_system":"1900"}

{"sheet":"ΣΠ.8","index":0,"n_rows":32,"n_cols":13,"rows_kept":32,"cut":false,"hidden":false,"merged":[[0,0,0,12],[1,0,1,12],[2,0,2,12],[3,0,3,12],[11,12,12,12],[5,0,5,1],[7,0,7,1],[7,2,7,12],[9,6,9,11],[9,0,10,0],[9,1,10,1],[9,3,10,3],[9,4,10,4],[9,5,10,5],[9,12,10,12],[11,5,12,5],[17,1,18,1],[21,3,22,3],[11,0,12,0],[13,0,14,0],[11,1,12,1],[13,1,14,1],[11,3,12,3],[13,3,14,3],[15,5,16,5],[19,5,20,5],[17,3,18,3],[17,5,18,5],[23,0,24,0],[23,1,24,1],[15,1,16,1],[19,3,20,3],[15,3,16,3],[23,3,24,3],[15,0,16,0],[21,0,22,0],[21,1,22,1],[17,0,18,0],[19,0,20,0],[19,1,20,1],[23,12,24,12],[11,4,12,4],[13,4,14,4],[15,4,16,4],[17,4,18,4],[21,12,22,12],[19,4,20,4],[21,4,22,4],[23,4,24,4],[17,12,18,12],[13,12,14,12],[15,12,16,12],[23,5,24,5],[21,5,22,5],[13,5,14,5],[19,12,20,12],[25,0,25,11],[28,0,28,12],[27,0,27,12],[30,8,30,12],[31,8,31,12],[31,0,31,3],[30,0,30,3],[30,4,30,7],[31,4,31,7]]}
[]
[]
[]
["ΣΥΝΟΠΤΙΚΟΣ ΠΙΝΑΚΑΣ ΠΑΡΑΣΤΑΤΙΚΩΝ ΛΟΙΠΩΝ ΕΞΟΔΩΝ-ΑΜΟΙΒΩΝ ΤΡΙΤΩΝ"]
[]
["Κωδικός Έργου"]
[]
["Τίτλος Έργου"]
[]
["Α/α","Προμηθευτής","Αρ.Παρ/τικού","Περιγραφή Είδους στα ελληνικά [1]","Αιτιολόγηση Προμήθειας [2]","Κωδικός δαπάνης (ΟΠΣ)","Δαπάνη ανά Πακέτο εργασίας",null,null,null,null,null,"Συνολική Αξία"]
[null,null,"Ημερομηνία",null,null,null,"πε","ποσό","πε","ποσό","πε","ποσό"]
[{"$f":"IF(B12<>\"\",1,0)","v":1},"Προμηθευτής",null,"Περιγραφή Είδους στα ελληνικά","Αιτιολόγηση Προμήθειας","64-00","1",null,"1",null,"1",null,{"$f":"SUM(H12+H13+J12+J13+L12+L13)","v":0}]
[null,null,null,null,null,null,"1",null,"1",null,"1"]
[{"$f":"IF(B14<>\"\",A12+1,0)","v":0},null,null,null,null,null,null,null,null,null,null,null,{"$f":"SUM(H14+H15+J14+J15+L14+L15)","v":0}]
[]
[{"$f":"IF(B16<>\"\",A14+1,0)","v":0},null,null,null,null,null,null,null,null,null,null,null,{"$f":"SUM(H16+H17+J16+J17+L16+L17)","v":0}]
[]
[{"$f":"IF(B18<>\"\",A16+1,0)","v":0},null,null,null,null,null,null,null,null,null,null,null,{"$f":"SUM(H18+H19+J18+J19+L18+L19)","v":0}]
[]
[{"$f":"IF(B20<>\"\",A18+1,0)","v":0},null,null,null,null,null,null,null,null,null,null,null,{"$f":"SUM(H20+H21+J20+J21+L20+L21)","v":0}]
[]
[{"$f":"IF(B22<>\"\",A20+1,0)","v":0},null,null,null,null,null,null,null,null,null,null,null,{"$f":"SUM(H22+H23+J22+J23+L22+L23)","v":0}]
[]
[{"$f":"IF(B24<>\"\",A22+1,0)","v":0},null,null,null,null,null,null,null,null,null,null,null,{"$f":"SUM(H24+H25+J24+J25+L24+L25)","v":0}]
[]
["Σύνολο",null,null,null,null,null,null,null,null,null,null,null,{"$f":"SUM(M12:M25)","v":0}]
[]
["[1] Παρακαλούμε μη χρησιμοποιείτε κωδικοποιήσεις. Περιγράψτε το είδος με σαφήνεια."]
["[2] Αιτιολογείστε συνδέοντας τη δαπάνη με το φυσικό αντικείμενο του έργου (σκοπιμότητα δαπάνης). Δεν είναι αποδεκτή γενική αιτιολογία όπως: \"... για τις ανάγκες του προγράμματος\""]
[]
["Παραλαβή Υλικών",null,null,null,"Επιστημονικά Υπεύθυνος",null,null,null,"Παρατηρήσεις"]
["Βεβαιώνω ότι παρελήφθησαν, εγκαταστάθηκαν και σημάνθηκαν, όπου απαιτείται, με τις σχετικές ενδείξεις τα παραπάνω είδη, όπως αυτά περιγράφονται αναλυτικά στα επισυναπτόμενα παραστατικά, τα οποία κρίνονται απαραίτητα για την υλοποίηση του έργου και θα χρησιμοποιηθούν αποκλειστικά για τις ανάγκες του προγράμματος"]

{"sheet":"ΕΠ.8","index":1,"n_rows":32,"n_cols":6,"rows_kept":32,"cut":false,"hidden":false,"merged":[[32,1,32,3],[12,0,14,0],[30,0,30,5],[32,4,32,5],[31,1,31,3],[28,0,28,4],[17,1,17,3],[29,1,29,5],[27,0,27,4],[25,0,25,5],[26,0,26,5],[22,0,22,5],[0,0,0,5],[24,0,24,1],[24,2,24,5],[15,0,15,4],[16,4,16,5],[1,0,1,1],[12,1,12,4],[13,1,13,4],[14,1,14,4],[17,4,17,5],[21,0,21,5],[10,1,10,5],[16,0,16,3],[8,4,8,5],[6,0,6,5],[23,0,23,1],[19,0,19,5],[23,2,23,5],[8,1,8,2],[31,4,31,5],[20,0,20,5]]}
[]
[]
[null,null,null,null,"Εντυπο Ε.8"]
["Συμπληρώνεται από την Μ.Ο.Δ.Υ του ΕΛΚΕ"]
["Ημερομηνία:"]
["Αρ. Πρωτ.:"]
["ΕΝΤΟΛΗ ΠΛΗΡΩΜΗΣ - ΑΠΟΔΟΣΗΣ ΛΟΙΠΩΝ ΕΞΟΔΩΝ"]
[]
["Επιστημονικά Υπεύθυνος: ",{"$f":"ΣΠ.8!E32","v":0},null,"Κωδικός Έργου",{"$f":"ΣΠ.8!C6","v":0}]
[]
["Τίτλος Έργου",{"$f":"ΣΠ.8!C8","v":0}]
[]
["Τρόπος Πληρωμής","1. Με επιταγή στο όνομα του/των δικαιούχων"]
[null,"2. Με κατάθεση στον τραπεζικό λογαριασμό του/των δικαιούχων",null,null,null,"Χ"]
[null,"3. Με επιταγή στο όνομα του Επιστημονικά Υπευθύνου"]
[]
["Κατηγορίες Επιλέξιμων Δαπανών [2]",null,null,null,"Συνολικό Ποσό Πληρωμής"]
[{"$f":"ΣΠ.8!F12","v":"64-00"},{"$f":"'ΚΩΔΙΚΟΙ ΛΟΓΙΣΤΙΚΗΣ'!B18","v":"Έξοδα μεταφορών, προσωπικού, εξοπλισμού, υλικών - Έξοδα καυσίμων"},null,null,{"$f":"ΣΠ.8!$M$26","v":0}]
[]
["[1] Τα δικαιολογητικά δαπανών υποβάλλονται στη Γραμματεία της επιτροπής Ερευνών ανεξάρτητα από την ύπαρξη ή όχι ταμειακού υπολοίπου στο έργο"]
["[2] Το έντυπο αυτό χρησιμοποιείται και για τις περιπτώσεις ταυτόχρονης εντολής πληρωμής και απόδοσης λογαριασμού"]
[]
["Βεβαιώνω ότι όλα τα κονδύλια των δαπανών που περιλαμβάνονται στην εντολή πληρωμής προβλέπονται στον εγκεκριμένο προϋπολογισμό του έργου και συνοδεύονται από τα νόμιμα παραστατικά δαπανών, όπως αυτά περιγράφονται στο Φ.Κ.Β.Σ., καθώς και τα απαραίτητα διοικητικά έγγραφα, σύμφωνα με την Απόφαση Ένταξης του έργου/σύμβαση με το Φορέα Χρηματοδότησης και τον Οδηγό Διαχείρισης της Επιτροπής Ερευνών ΠΔΜ"]
["Ημερομηνία Υποβολής",null,"Επιστημονικά Υπεύθυνος"]
[null,null,{"$f":"B9","v":0}]
[]
["Τα παρακάτω πεδία συμπληρώνονται από τη γραμματεία του Ειδικού Λογαριασμού"]
["1. Έγινε έλεγχος δικαιολογητικών δαπανών, αριθμητικών πράξεων και συμφωνίας με τον προϋπολογισμό του έργου"]
["2. Οι προμήθειες, εκτελέσεις έργων ή εκμισθώσεις έχουν γίνει σύμφωνα με τον νόμο 4957/2022 την κείμενη, Εθνική και Κοινοτική Νομοθεσία"]
["3. Παρατηρήσεις ελέγχου"]
[]
["Τμήμα Διοικητικής & Οικονομικής Υποστήριξης Έργων","Τμήμα Λογιστηρίου & Οικονομικής Διαχείρισης Έργων",null,null,"Ημερομηνία Παραλαβής"]

{"sheet":"ΚΩΔΙΚΟΙ ΛΟΓΙΣΤΙΚΗΣ","index":2,"n_rows":18,"n_cols":3,"rows_kept":18,"cut":false,"hidden":false,"merged":[[0,0,0,2],[1,0,1,2],[2,0,2,2]]}
[]
[]
[]
["ΚΩΔΙΚΟΣ","ΠΕΡΙΓΡΑΦΗ","ΠΑΡΑΤΗΡΗΣΕΙΣ"]
["64-00","Έξοδα μεταφορών, προσωπικού, εξοπλισμού, υλικών - Έξοδα καυσίμων"]
["64-03","Έξοδα για τη συμμετοχή και διοργάνωση εκθέσεων - επιδείξεων"]
["64-05","Έξοδα για συνδρομές σε περιοδικά, ενώσεις, οργανισμούς"]
["64-06","Φόρος Δωρεών"]
["64-07","Προμήθεια γραφικής ύλης, έντυπων, εκτυπώσεων, βιβλίων"]
["64-08","Προμήθεια υλικών άμεσης ανάλωσης (εργαστηριακά αναλώσιμα)"]
["64-09","Έξοδα δημοσιεύσεων και ανακοινώσεων"]
["64-98","Λοιπά έξοδα (π.χ. κλειδιά, μονωτικές ταινίες)"]
[]
[]
[]
[]
[]
[{"$f":"ΕΠ.8!A18","v":"64-00"},{"$f":"IF(A18=A5,\"Έξοδα μεταφορών, προσωπικού, εξοπλισμού, υλικών - Έξοδα καυσίμων\",IF(A18=#REF!,\"Έξοδα για την προβολή & διαφήμιση των έργων\",IF(A18=A6,\"Έξοδα για τη συμμετοχή και διοργάνωση εκθέσεων - επιδείξεων\", IF(A18=A7,\"Έξοδα για συνδρομές σε περιοδικά, ενώσεις, οργανισμούς\",IF(A18=A8,\"Φόρος Δωρεών\",IF(A18=A9,\"Προμήθεια γραφικής ύλης, έντυπων, εκτυπώσεων, βιβλίων\",IF(A18=A10,\"Προμήθεια υλικών άμεσης ανάλωσης (εργαστηριακά αναλώσιμα)\",IF(A18=A11,\"Έξοδα δημοσιεύσεων και ανακοινώσεων\",IF(A18=A12,\"Λοιπά έξοδα (π.χ. κλειδιά, μονωτικές ταινίες)\",)))))))))","v":"Έξοδα μεταφορών, προσωπικού, εξοπλισμού, υλικών - Έξοδα καυσίμων"}]